bitfinex/quotes_SOLUSD_20220307
["timestamp","ask_amount","ask_price","bid_price","bid_amount"]
[1646644312343,120.4,82.969,82.901,53.5522]
[1646644312747,2.83613526,82.968,82.901,53.5522]
[1646644313343,120.4,82.969,82.901,53.5522]
[1646644313545,25.9010905,82.978,82.901,53.5522]
[1646644313745,24.2719771,82.978,82.901,53.5522]
[1646644313947,1.6291134,82.983,82.901,53.5522]
[1646644314144,1.6291134,82.984,82.901,53.5522]
[1646644314745,1.6291134,82.987,82.901,53.5522]
[1646644315247,76.22181173,82.988,82.901,53.5522]
[1646644315446,1.6291134,82.987,82.901,53.5522]
[1646644317047,76.22181173,82.988,82.901,53.5522]
[1646644317247,24.2719771,82.987,82.901,53.5522]
[1646644317450,25.9010905,82.987,82.901,53.5522]
[1646644319449,120.4,82.979,82.901,53.5522]
[1646644319650,122.0291134,82.979,82.901,53.5522]
[1646644319850,1.6291134,82.973,82.901,53.5522]
[1646644320049,1.6291134,82.968,82.901,53.5522]
[1646644320249,1.6291134,82.967,82.901,53.5522]
[1646644320450,120.4,82.959,82.901,6.027]
[1646644320652,63.64857706,82.958,82.901,6.027]
[1646644320849,0.16576476,82.957,82.901,6.027]
[1646644321049,2.83613526,82.957,82.901,6.027]
[1646644321451,2.83613526,82.956,82.901,6.027]
[1646644322659,120.4,82.949,82.874,47.1224]
[1646644322954,0.25012989,82.945,82.874,47.1224]
[1646644323354,4.46524866,82.944,82.874,47.1224]
[1646644323554,1.6291134,82.942,82.874,47.1224]
[1646644323754,45.67474496,82.929,82.874,47.1224]
[1646644327058,1.6291134,82.943,82.874,47.1224]
[1646644327258,1.6291134,82.96,82.874,47.1224]
[1646644327457,1.6291134,82.964,82.875,15.01948329]
[1646644327658,1.6291134,82.969,82.88,14.68]
[1646644328059,48.55693573,82.954,82.881,15.01948329]
[1646644330175,48.55693573,82.954,82.874,47.1224]
[1646644330371,51.39307099,82.954,82.874,47.1224]
[1646644330670,1.6291134,82.949,82.874,47.1224]
[1646644331169,1.6291134,82.945,82.874,47.1224]
[1646644331372,1.6291134,82.946,82.874,47.1224]
[1646644331570,5.28199619,82.947,82.874,47.1224]
[1646644331571,1.6291134,82.945,82.874,47.1224]
[1646644331774,18.1061,82.94,82.874,47.1224]
[1646644333174,120.4,82.939,82.874,47.1224]
[1646644333474,144.6719771,82.939,82.874,47.1224]
[1646644333676,24.2719771,82.938,82.874,47.1224]
[1646644333874,120.4,82.929,82.841,14.23687457]
[1646644334074,120.4,82.929,82.83,14.68]
[1646644334279,120.4,82.927,82.831,24.179]
[1646644334474,0.22574027,82.926,82.831,24.179]
[1646644334675,66.58602936,82.928,82.831,24.179]
[1646644334878,22.8004,82.927,82.831,24.179]
[1646644335492,18.1108,82.92,82.831,24.179]
[1646644335692,120.4,82.919,82.831,24.179]
[1646644336796,2.83613526,82.918,82.831,24.179]
[1646644336994,120.4,82.909,82.831,24.179]
[1646644337893,18.1126,82.91,82.831,24.179]
[1646644337894,32.7926,82.91,82.831,24.179]
[1646644338894,120.4,82.909,82.831,24.179]
[1646644339096,120.37510353,82.909,82.831,24.179]
[1646644339293,59.31062699,82.898,82.831,24.179]
[1646644339496,4.69075404,82.896,82.821,24.0422]
[1646644339694,4.69075404,82.896,82.801,14.23687457]
[1646644339894,2.83613526,82.895,82.789,14.23687457]
[1646644340094,120.37510353,82.889,82.789,14.23687457]
[1646644340294,18.1208,82.87,82.789,14.23687457]
[1646644340495,45.75389182,82.869,82.79,23.8217]
[1646644341894,45.75389182,82.869,82.797,17.8727]
[1646644342294,45.75389182,82.869,82.797,138.2727]
[1646644342794,45.75389182,82.869,82.797,17.8727]
[1646644343496,45.75389182,82.869,82.797,138.2727]
[1646644344094,45.75389182,82.869,82.8,18.114]
[1646644344594,45.75389182,82.869,82.801,24.5346]
[1646644346300,45.75389182,82.869,82.802,120.4]
[1646644346495,45.75389182,82.869,82.807,134.63687457]
[1646644346696,45.75389182,82.869,82.807,14.23687457]
[1646644348297,45.75389182,82.869,82.801,24.5346]
[1646644348896,166.15389182,82.869,82.801,24.5346]
[1646644349096,168.99002708,82.869,82.801,24.5346]
[1646644349495,48.59002708,82.869,82.801,24.5346]
[1646644350101,45.75389182,82.869,82.801,24.5346]
[1646644351102,45.75389182,82.869,82.81,14.68]
[1646644352102,45.75389182,82.869,82.806,15.01948329]
[1646644352302,45.75389182,82.869,82.801,24.5346]
[1646644353906,45.75389182,82.869,82.802,26.1802896]
[1646644354205,45.75389182,82.869,82.81,18.1118]
[1646644354406,45.75389182,82.869,82.81,32.7918]
[1646644354608,22.5192,82.906,82.81,58.9720896]
[1646644354806,22.5192,82.906,82.811,61.93778329]
[1646644355211,1.6291134,82.926,82.831,120.4]
[1646644355410,23.7692,82.928,82.84,14.68]
[1646644355607,57.66450897,82.927,82.851,120.4]
[1646644356211,57.66450897,82.927,82.853,120.4]
[1646644356608,57.66450897,82.927,82.855,120.4]
[1646644356808,57.66450897,82.927,82.861,120.4]
[1646644357107,57.66450897,82.927,82.87,18.0959]
[1646644359814,22.7979,82.948,82.87,18.0959]
[1646644360013,22.7979,82.948,82.871,23.5416]
[1646644360614,22.7979,82.948,82.88,18.0964]
[1646644360814,64.65218239,82.947,82.88,18.0964]
[1646644361717,64.65218239,82.947,82.881,120.4]
[1646644361918,24.2719771,82.97,82.891,120.4]
[1646644361919,1.6291134,82.961,82.891,120.4]
[1646644362119,24.2719771,82.97,82.893,120.4]
[1646644362120,1.6291134,82.966,82.893,120.4]
[1646644362319,1.6291134,82.969,82.893,120.4]
[1646644362517,1.6291134,82.973,82.893,120.4]
[1646644362820,1.6291134,82.971,82.893,120.4]
[1646644363018,64.25471598,82.972,82.893,120.4]
[1646644363218,65.88382938,82.972,82.892,23.0831]
[1646644363420,1.6291134,82.969,82.892,23.0831]
[1646644363719,1.6291134,82.97,82.892,41.5391]
[1646644363934,1.6291134,82.969,82.892,41.5391]
[1646644364121,1.6291134,82.97,82.892,23.0831]
[1646644364320,24.2719771,82.969,82.892,23.0831]
[1646644364720,25.9010905,82.969,82.892,23.0831]
[1646644365323,24.2719771,82.969,82.892,23.0831]
[1646644366522,24.2719771,82.969,82.893,6.029]
[1646644370126,24.2719771,82.969,82.892,23.0831]
[1646644370529,120.4,82.968,82.892,23.0831]
[1646644370727,123.23613526,82.968,82.892,23.0831]
[1646644370927,24.2719771,82.967,82.892,23.0831]
[1646644371327,27.10811236,82.967,82.892,23.0831]
[1646644371528,18.1019,82.96,82.892,23.0831]
[1646644371929,2.83613526,82.96,82.892,23.0831]
[1646644372129,24.2719771,82.966,82.892,23.05170368]
[1646644372937,2.83613526,82.965,82.892,23.05170368]
[1646644373129,4.1623861,82.964,82.874,6.029]
[1646644373331,1.6291134,82.957,82.874,6.029]
[1646644373531,1.6291134,82.952,82.874,6.029]
[1646644373732,120.4,82.946,82.874,6.029]
[1646644373931,120.4,82.946,82.862,23.149]
[1646644374132,3.10286256,82.945,82.862,23.149]
[1646644374332,120.4,82.944,82.862,23.149]
[1646644374530,0.2667273,82.943,82.862,23.149]
[1646644374731,3.10286256,82.943,82.862,23.149]
[1646644374931,0.2667273,82.941,82.862,23.149]
[1646644375131,4.08518156,82.938,82.835,6.03]
[1646644375333,0.30283293,82.935,82.835,6.03]
[1646644375536,4.71649,82.934,82.835,6.03]
[1646644375736,1.6291134,82.918,82.8,6.032]
[1646644376034,0.41215929,82.912,82.8,53.0972]
[1646644376234,4.15923899,82.908,82.81,18.1119]
[1646644376454,4.57139828,82.908,82.81,18.1119]
[1646644376654,4.57139828,82.908,82.811,23.0842]
[1646644376854,0.41215929,82.906,82.811,23.0842]
[1646644377254,0.41215929,82.904,82.811,23.0842]
[1646644377653,0.41215929,82.902,82.811,23.0842]
[1646644377854,28.59479827,82.903,82.811,23.0842]
[1646644378056,0.41215929,82.9,82.811,23.0842]
[1646644378453,2.83613526,82.901,82.811,23.0842]
[1646644378654,2.83613526,82.901,82.812,120.4]
[1646644378853,2.83613526,82.901,82.811,23.0842]
[1646644379054,0.41215929,82.9,82.811,23.0842]
[1646644379457,146.15866301,82.899,82.811,23.0842]
[1646644379856,148.99479827,82.898,82.811,23.0842]
[1646644380056,28.59479827,82.898,82.811,23.0842]
[1646644380256,28.59479827,82.897,82.811,23.0842]
[1646644380659,2.83613526,82.896,82.811,23.0842]
[1646644381456,25.75866301,82.895,82.811,23.0842]
[1646644381858,2.83613526,82.894,82.811,23.0842]
[1646644382459,50.05596301,82.907,82.812,120.4]
[1646644382958,25.75866301,82.921,82.812,120.4]
[1646644383161,25.75866301,82.921,82.84,18.1048]
[1646644383359,1.6291134,82.938,82.841,143.5233]
[1646644383559,23.86931364,82.941,82.841,143.5233]
[1646644383759,1.6291134,82.947,82.841,143.5233]
[1646644383959,1.6291134,82.956,82.841,149.32580508]
[1646644384159,1.6291134,82.958,82.841,169.35784428]
[1646644384361,1.6291134,82.96,82.841,169.35784428]
[1646644384560,60.18342896,82.959,82.843,120.4]
[1646644384960,60.18342896,82.959,82.861,120.4]
[1646644385163,60.18342896,82.959,82.863,120.4]
[1646644386163,60.18342896,82.959,82.87,18.099]
[1646644389566,2.83613526,82.958,82.87,18.099]
[1646644389765,60.18342896,82.959,82.87,18.099]
[1646644391667,63.01956422,82.959,82.87,18.099]
[1646644393573,120.4,82.958,82.863,17.9841]
[1646644393771,122.0291134,82.958,82.863,17.9841]
[1646644393972,2.83613526,82.957,82.863,17.9841]
[1646644395272,4.46524866,82.957,82.863,17.9841]
[1646644395472,4.46524866,82.957,82.862,47.6182]
[1646644395677,1.6291134,82.951,82.862,47.6182]
[1646644395875,1.6291134,82.944,82.862,47.6182]
[1646644396073,1.6291134,82.943,82.862,47.6182]
[1646644396274,1.6291134,82.945,82.862,47.6182]
[1646644396577,4.46524866,82.95,82.862,47.6182]
[1646644396774,1.6291134,82.956,82.863,120.4]
[1646644396975,23.1845,82.957,82.863,120.4]
[1646644398175,1.6291134,82.966,82.87,18.099]
[1646644398377,23.2076,82.968,82.87,18.099]
[1646644398974,23.2076,82.968,82.87,32.779]
[1646644399176,23.2076,82.968,82.871,120.4]
[1646644399375,23.2076,82.968,82.88,18.0959]
[1646644399576,23.2076,82.968,82.881,24.8056]
[1646644400276,24.8367134,82.968,82.881,24.8056]
[1646644401290,23.2076,82.968,82.881,24.8056]
[1646644401480,23.2076,82.968,82.89,18.0941]
[1646644406078,23.2076,82.968,82.891,120.4]
[1646644406379,23.2076,82.968,82.89,18.0941]
[1646644407379,1.6291134,82.974,82.891,120.4]
[1646644407581,1.6291134,82.974,82.891,167.7573]
[1646644407781,1.6291134,82.986,82.91,18.0873]
[1646644407982,23.1845,82.987,82.911,24.3196]
[1646644408381,55.94176007,82.986,82.911,24.3196]
[1646644409381,1.6291134,82.982,82.911,24.3196]
[1646644411287,1.6291134,82.983,82.911,24.3196]
[1646644411684,1.6291134,82.981,82.911,24.3196]
[1646644412287,1.6291134,82.978,82.911,24.3196]
[1646644412584,1.6291134,82.964,82.911,24.3196]
[1646644412785,1.6291134,82.963,82.911,24.3196]
[1646644412984,48.01259078,82.961,82.911,24.3196]
[1646644414387,49.64170418,82.961,82.911,24.3196]
[1646644414586,48.01259078,82.961,82.911,24.3196]
[1646644421692,48.01259078,82.961,82.912,120.4]
[1646644422494,48.01259078,82.961,82.911,24.3196]
[1646644422692,48.01259078,82.961,82.92,18.0861]
[1646644423699,48.01259078,82.961,82.911,24.3196]
[1646644425416,1.6291134,82.96,82.911,24.3196]
[1646644426018,48.01259078,82.961,82.911,24.3196]
[1646644427518,1.6291134,82.971,82.911,24.3196]
[1646644427817,1.6291134,82.979,82.911,24.3196]
[1646644428217,1.6291134,82.978,82.911,24.3196]
[1646644428418,48.96143587,82.977,82.911,24.3196]
[1646644429121,48.96143587,82.977,82.92,18.0879]
[1646644431222,48.96143587,82.977,82.911,24.3196]
[1646644431422,1.6291134,82.967,82.911,24.3196]
[1646644431921,1.6291134,82.966,82.911,24.3196]
[1646644432522,1.6291134,82.965,82.911,24.3196]
[1646644434124,1.6291134,82.964,82.911,24.3196]
[1646644434627,1.6291134,82.965,82.911,24.3196]
[1646644435526,1.6291134,82.964,82.911,24.3196]
[1646644435929,1.6291134,82.963,82.911,24.3196]
[1646644436831,1.6291134,82.964,82.911,24.3196]
[1646644437032,1.6291134,82.963,82.911,24.3196]
[1646644437430,1.6291134,82.964,82.911,24.3196]
[1646644437830,1.6291134,82.965,82.911,24.3196]
[1646644439631,1.6291134,82.965,82.911,24.09380639]
[1646644440637,1.6291134,82.964,82.911,24.09380639]
[1646644440835,1.6291134,82.965,82.911,24.09380639]
[1646644441435,1.6291134,82.964,82.911,24.09380639]
[1646644441636,1.6291134,82.963,82.911,24.09380639]
[1646644443138,1.6291134,82.962,82.911,24.09380639]
[1646644443937,1.6291134,82.962,82.892,6.027]
[1646644444137,1.6291134,82.955,82.892,6.027]
[1646644444338,1.6291134,82.953,82.892,6.027]
[1646644444538,1.6291134,82.948,82.881,24.5277]
[1646644445041,1.6291134,82.949,82.881,24.5277]
[1646644445241,1.6291134,82.939,82.881,24.5277]
[1646644445739,1.6291134,82.938,82.881,24.5277]
[1646644445940,1.6291134,82.941,82.881,24.5277]
[1646644446138,1.6291134,82.94,82.881,24.5277]
[1646644446338,1.6291134,82.939,82.881,24.5277]
[1646644447039,1.6291134,82.938,82.881,24.5277]
[1646644447238,1.6291134,82.944,82.881,24.5277]
[1646644448239,1.6291134,82.951,82.881,24.5277]
[1646644448740,52.00063044,82.952,82.882,6.03]
[1646644448940,52.00063044,82.952,82.883,120.4]
[1646644449141,1.6291134,82.956,82.891,120.4]
[1646644449340,1.6291134,82.967,82.893,120.4]
[1646644449540,24.2904,82.969,82.893,120.4]
[1646644449741,1.6291134,82.973,82.894,5.80250508]
[1646644449940,4.51900343,83.027,82.894,5.80250508]
[1646644449941,1.6291134,82.975,82.896,120.4]
[1646644450143,1.6291134,82.971,82.901,120.4]
[1646644450643,1.6291134,82.969,82.901,120.4]
[1646644451042,1.6291134,82.97,82.901,120.4]
[1646644451841,1.6291134,82.976,82.911,120.4]
[1646644452041,1.6291134,82.983,82.911,120.4]
[1646644452241,1.6291134,82.983,82.913,120.4]
[1646644452443,1.6291134,82.985,82.915,120.4]
[1646644452647,1.6291134,82.987,82.93,14.68]
[1646644452843,100.0,83.0,82.95,18.0801]
[1646644453043,100.0,83.0,82.95,32.7601]
[1646644455045,100.0,83.0,82.95,14.68]
[1646644455645,100.0,83.0,82.936,18.1825]
[1646644455846,100.0,83.0,82.934,6.025]
[1646644456246,1.6291134,82.983,82.934,6.025]
[1646644456445,1.6291134,82.976,82.87,14.68]
[1646644456647,48.53866446,82.971,82.87,14.68]
[1646644456947,50.16777786,82.971,82.87,14.68]
[1646644457246,1.6291134,82.968,82.87,14.68]
[1646644457446,1.6291134,82.968,82.883,23.669]
[1646644457748,1.6291134,82.969,82.883,23.669]
[1646644457947,2.83613526,82.97,82.883,23.669]
[1646644458147,2.83613526,82.97,82.89,18.0944]
[1646644458545,1.6291134,82.968,82.89,18.0944]
[1646644458747,1.6291134,82.968,82.884,23.6652]
[1646644458949,4.46524866,82.967,82.884,23.6652]
[1646644459149,1.6291134,82.966,82.884,23.6652]
[1646644459749,1.6291134,82.965,82.884,23.6652]
[1646644460752,1.6291134,82.966,82.884,23.6652]
[1646644460952,1.6291134,82.965,82.884,23.6652]
[1646644461652,1.6291134,82.964,82.884,23.6652]
[1646644462152,4.46524866,82.967,82.884,23.6652]
[1646644462355,1.6291134,82.966,82.885,120.4]
[1646644462756,1.6291134,82.966,82.884,23.6652]
[1646644463354,1.6291134,82.965,82.89,18.0943]
[1646644463756,1.6291134,82.966,82.89,18.0943]
[1646644463954,1.6291134,82.965,82.89,18.0943]
[1646644464155,1.6291134,82.965,82.891,6.029]
[1646644464555,2.83613526,82.964,82.885,6.029]
[1646644464755,1.6291134,82.963,82.885,6.029]
[1646644464954,1.6291134,82.961,82.885,6.029]
[1646644465155,2.83613526,82.964,82.884,23.6652]
[1646644465156,1.6291134,82.96,82.884,23.6652]
[1646644465456,2.83613526,82.964,82.884,23.6652]
[1646644465656,1.6291134,82.962,82.884,23.6652]
[1646644466155,73.44562597,82.961,82.884,23.6652]
[1646644466372,1.6291134,82.958,82.884,23.6652]
[1646644466575,1.6291134,82.955,82.871,6.029]
[1646644466773,1.6291134,82.946,82.854,30.7268]
[1646644466974,50.72423074,82.945,82.854,30.7268]
[1646644467174,75.15853074,82.945,82.854,30.7268]
[1646644467374,18.1048,82.94,82.854,30.7268]
[1646644467774,2.83613526,82.939,82.854,30.7268]
[1646644467977,35.8864648,82.939,82.854,30.7268]
[1646644468477,2.83613526,82.938,82.854,30.7268]
[1646644472178,18.1068,82.93,82.854,30.7268]
[1646644472576,2.83613526,82.929,82.854,30.7268]
[1646644472976,2.83613526,82.929,82.854,24.6968]
[1646644473479,172.12090715,82.919,82.839,6.031]
[1646644473676,172.31583053,82.919,82.839,6.031]
[1646644473876,35.88377813,82.918,82.839,6.031]
[1646644474078,0.21993668,82.917,82.817,6.032]
[1646644474277,59.34841481,82.917,82.817,6.032]
[1646644474476,35.88377813,82.916,82.817,6.032]
[1646644474878,35.88377813,82.915,82.817,6.032]
[1646644475277,23.2447,82.917,82.817,6.032]
[1646644475278,18.1161,82.9,82.817,6.032]
[1646644475678,2.83613526,82.899,82.817,6.032]
[1646644476780,18.1161,82.9,82.817,6.032]
[1646644476978,63.22303526,82.91,82.817,6.032]
[1646644476979,2.83613526,82.91,82.817,126.432]
[1646644477180,51.72090715,82.919,82.817,120.4]
[1646644477379,51.72090715,82.919,82.822,120.4]
[1646644477580,51.72090715,82.919,82.826,120.4]
[1646644478080,51.72090715,82.919,82.828,120.4]
[1646644478381,51.72090715,82.919,82.835,24.0668]
[1646644478580,26.08083526,82.917,82.835,24.0668]
[1646644478879,23.2447,82.917,82.836,120.4]
[1646644479080,23.2447,82.917,82.835,24.0668]
[1646644479682,23.2447,82.917,82.835,30.0998]
[1646644480886,23.2447,82.917,82.836,120.4]
[1646644481082,23.2447,82.917,82.838,120.4]
[1646644481281,23.2447,82.917,82.84,120.4]
[1646644481484,23.2447,82.917,82.841,6.032]
[1646644481686,23.2447,82.917,82.837,120.4]
[1646644481885,23.2447,82.917,82.838,6.033]
[1646644483185,2.83613526,82.916,82.838,6.033]
[1646644483987,2.83613526,82.916,82.841,120.4]
[1646644484186,23.2447,82.917,82.841,120.4]
[1646644484386,23.2447,82.917,82.843,120.4]
[1646644485089,16.3091134,82.94,82.84,18.1046]
[1646644485090,2.83613526,82.936,82.851,120.4]
[1646644485387,25.90367666,82.951,82.844,6.032]
[1646644485388,26.4839134,82.958,82.861,120.4]
[1646644485587,2.83613526,82.952,82.863,120.4]
[1646644485789,2.83613526,82.952,82.865,120.4]
[1646644485990,45.46595882,82.951,82.865,120.4]
[1646644486188,45.46595882,82.951,82.867,120.4]
[1646644486489,45.46595882,82.951,82.88,18.0951]
[1646644486688,45.46595882,82.951,82.881,28.9503]
[1646644487789,45.46595882,82.951,82.881,22.9203]
[1646644490092,18.1025,82.95,82.881,22.9203]
[1646644490292,20.93863526,82.95,82.881,22.9203]
[1646644490492,2.83613526,82.949,82.881,22.9203]
[1646644490692,27.17251817,82.949,82.881,22.9203]
[1646644491093,2.83613526,82.948,82.881,22.9203]
[1646644491893,45.46595882,82.951,82.881,22.9203]
[1646644492494,45.46595882,82.951,82.882,6.03]
[1646644493098,48.30209408,82.951,82.882,6.03]
[1646644493397,49.93120748,82.951,82.882,6.03]
[1646644493797,49.93120748,82.951,82.881,22.9203]
[1646644494000,19.7315134,82.95,82.881,22.9203]
[1646644494200,18.1024,82.95,82.881,22.9203]
[1646644494406,19.7315134,82.95,82.881,22.9203]
[1646644494607,18.1024,82.95,82.881,22.9203]
[1646644494904,19.7315134,82.95,82.881,22.9203]
[1646644495104,18.1024,82.95,82.881,22.9203]
[1646644495505,19.7315134,82.95,82.881,22.9203]
[1646644495804,2.83613526,82.949,82.881,22.9203]
[1646644498709,24.33638291,82.948,82.881,22.9203]
[1646644498906,1.6291134,82.94,82.881,22.9203]
[1646644499305,1.6291134,82.938,82.881,22.9203]
[1646644499506,9.7391134,82.938,82.881,22.9203]
[1646644499806,8.11,82.938,82.881,22.9203]
[1646644500006,1.6291134,82.935,82.881,22.9203]
[1646644500607,1.6291134,82.936,82.881,22.9203]
[1646644500808,1.6291134,82.938,82.881,22.9203]
[1646644501008,1.6291134,82.94,82.881,22.9203]
[1646644501408,1.6291134,82.943,82.881,22.9203]
[1646644501607,1.6291134,82.944,82.881,22.9203]
[1646644501806,1.6291134,82.943,82.881,22.9203]
[1646644502007,1.6291134,82.941,82.881,22.9203]
[1646644502207,1.6291134,82.942,82.881,22.9203]
[1646644502407,18.1051,82.94,82.881,22.9203]
[1646644502609,1.6291134,82.939,82.881,22.9203]
[1646644502808,1.6291134,82.937,82.881,22.9203]
[1646644503207,1.6291134,82.938,82.881,22.9203]
[1646644504309,1.6291134,82.939,82.881,22.9203]
[1646644504510,19.7342134,82.94,82.881,22.9203]
[1646644504711,1.6291134,82.94,82.881,22.9203]
[1646644504915,1.6291134,82.943,82.881,22.9203]
[1646644505112,1.6291134,82.945,82.881,22.9203]
[1646644505612,1.6291134,82.955,82.882,120.4]
[1646644505812,24.8548,82.958,82.882,120.4]
[1646644506014,24.8548,82.958,82.881,22.9203]
[1646644506415,26.4839134,82.958,82.881,22.9203]
[1646644506613,1.6291134,82.952,82.881,22.9203]
[1646644506813,1.6291134,82.947,82.881,22.9203]
[1646644507013,1.6291134,82.946,82.881,22.9203]
[1646644507216,1.6291134,82.944,82.867,6.03]
[1646644507417,1.6291134,82.939,82.867,6.03]
[1646644507821,18.1072,82.93,82.867,6.03]
[1646644508821,1.6291134,82.932,82.867,6.03]
[1646644509023,1.6291134,82.936,82.867,6.03]
[1646644509222,1.6291134,82.936,82.867,126.43]
[1646644509422,1.6291134,82.942,82.867,126.43]
[1646644509622,1.6291134,82.94,82.867,126.43]
[1646644509822,1.6291134,82.934,82.871,120.4]
[1646644510021,1.6291134,82.934,82.867,6.03]
[1646644510429,1.6291134,82.935,82.867,6.03]
[1646644511128,1.6291134,82.93,82.867,6.03]
[1646644511531,47.80044281,82.923,82.867,6.03]
[1646644511729,46.17132941,82.923,82.867,6.03]
[1646644513632,1.6291134,82.925,82.867,6.03]
[1646644514436,62.8819132,82.924,82.867,6.03]
[1646644514636,64.5110266,82.924,82.867,6.03]
[1646644515345,62.8819132,82.924,82.867,6.03]
[1646644515746,64.5110266,82.924,82.867,6.03]
[1646644516144,70.8510266,82.924,82.867,6.03]
[1646644516944,1.6291134,82.923,82.867,6.03]
[1646644517144,70.8510266,82.924,82.867,6.03]
[1646644517344,18.1094,82.92,82.867,6.03]
[1646644518648,19.7385134,82.92,82.867,6.03]
[1646644519051,18.1094,82.92,82.867,6.03]
[1646644519551,1.6291134,82.921,82.867,6.03]
[1646644519849,1.6291134,82.923,82.847,28.7114]
[1646644520050,64.5110266,82.924,82.847,28.7114]
[1646644520451,64.5110266,82.924,82.85,18.1029]
[1646644521052,64.5110266,82.924,82.847,22.6804]
[1646644522353,1.6291134,82.921,82.847,22.6804]
[1646644522652,1.6291134,82.92,82.847,22.6804]
[1646644522853,19.7385134,82.92,82.847,22.6804]
[1646644523053,1.6291134,82.914,82.847,22.6804]
[1646644523253,0.16655093,82.919,82.847,22.6804]
[1646644523254,1.6291134,82.911,82.847,22.6804]
[1646644523452,1.6291134,82.91,82.847,22.6804]
[1646644523652,1.6291134,82.909,82.847,22.6804]
[1646644524056,1.6291134,82.907,82.847,22.6804]
[1646644524453,2.83613526,82.906,82.847,22.6804]
[1646644525255,18.1133,82.9,82.84,2.2968794]
[1646644525756,52.57114927,82.899,82.84,2.2968794]
[1646644527256,52.57114927,82.899,82.837,17.8271]
[1646644529356,52.57114927,82.899,82.838,24.1738]
[1646644529556,49.73501401,82.899,82.838,24.1738]
[1646644531858,49.73501401,82.899,82.837,17.8271]
[1646644532058,49.73501401,82.899,82.812,24.2253]
[1646644532258,23.4535,82.898,82.813,24.1738]
[1646644535863,26.28963526,82.898,82.813,24.1738]
[1646644538165,44.63413526,82.898,82.813,24.1738]
[1646644538364,26.28963526,82.898,82.813,24.1738]
[1646644541874,0.21272133,82.897,82.81,6.033]
[1646644542073,26.28963526,82.898,82.81,6.033]
[1646644542074,1.6291134,82.875,82.81,6.033]
[1646644542371,1.6291134,82.87,82.81,6.033]
[1646644542570,1.6291134,82.867,82.81,6.033]
[1646644542869,112.8509624,82.874,82.81,6.033]
[1646644542870,1.6291134,82.864,82.81,6.033]
[1646644543068,1.6291134,82.86,82.81,6.033]
[1646644543270,8.5,82.86,82.791,23.8244]
[1646644543469,18.124,82.85,82.791,23.8244]
[1646644543669,63.13414686,82.849,82.791,23.8244]
[1646644543869,123.66309976,82.849,82.791,23.8244]
[1646644544069,6.037,82.848,82.791,23.8244]
[1646644544268,32.83991624,82.848,82.791,23.8244]
[1646644545270,18.1269,82.84,82.791,23.8244]
[1646644545475,6.037,82.839,82.791,23.8244]
[1646644547476,63.13414686,82.849,82.791,23.8244]
[1646644548677,69.17114686,82.849,82.779,24.6644]
[1646644548897,63.13414686,82.849,82.779,24.6644]
[1646644549079,6.037,82.848,82.779,24.6644]
[1646644549980,18.1266,82.84,82.779,24.6644]
[1646644550179,6.037,82.839,82.779,24.6644]
[1646644555282,18.1288,82.83,82.779,24.6644]
[1646644555482,59.16484288,82.828,82.779,24.6644]
[1646644555683,6.038,82.827,82.779,24.6644]
[1646644556984,18.1309,82.82,82.752,23.5742]
[1646644557185,6.039,82.819,82.752,23.5742]
[1646644557484,6.039,82.819,82.742,22.8713]
[1646644557687,6.039,82.819,82.743,23.551]
[1646644557888,120.4,82.824,82.743,23.551]
[1646644558086,120.4,82.822,82.743,23.551]
[1646644558287,120.4,82.82,82.743,23.551]
[1646644558487,8.87513526,82.821,82.743,23.551]
[1646644558686,129.27513526,82.821,82.743,23.551]
[1646644558886,18.1331,82.81,82.743,23.551]
[1646644559087,58.10481035,82.809,82.743,23.551]
[1646644560491,58.10481035,82.809,82.742,22.8713]
[1646644560492,18.1362,82.8,82.742,22.8713]
[1646644560691,6.04,82.799,82.742,22.8713]